fUST/lending_fUST_20250803
["ID","MTS","AMOUNT","RATE_DAILY","PERIOD"]
[377000078,1754196642389,-500.0,0.00027973,5]
[377000079,1754196642400,-500.0,0.00027973,5]
[377000080,1754196642410,-500.0,0.00027973,5]
[377000081,1754196642420,-154.01593757,0.00027973,5]
[377000082,1754196642430,-500.0,0.00027973,5]
[377000083,1754196642440,-500.0,0.00027973,5]
[377000084,1754196642450,-502.77488832,0.00027973,5]
[377000085,1754196642460,-500.0,0.00027973,5]
[377000086,1754196642470,-500.0,0.00027973,5]
[377000087,1754196642480,-500.0,0.00027973,5]
[377000088,1754196642490,-500.0,0.00027973,5]
[377000089,1754196642502,-500.0,0.00027973,5]
[377000090,1754196642511,-500.0,0.00027973,5]
[377000091,1754196642521,-500.0,0.00027973,5]
[377000092,1754196642530,-500.0,0.00027973,5]
[377000094,1754196642540,-500.0,0.00027973,5]
[377000096,1754196642550,-7329.44215298,0.00027982,3]
[377000098,1754196642559,-151.0,0.00027984,7]
[377000100,1754196642568,-442.17,0.00027993,10]
[377000102,1754196642578,-566.36,0.00028008,10]
[377000104,1754196642591,-1011.13916686,0.00028009,2]
[377000106,1754196642600,-1011.13916684,0.00028012,2]
[377000108,1754196642610,-1011.13916684,0.00028015,2]
[377000110,1754196642620,-3674.92605615,0.00028015,2]
[377000112,1754196642631,-163.89451954,0.00028015,2]
[377000114,1754196642640,-151.0,0.00028022,2]
[377000116,1754196642649,-151.0,0.00028022,2]
[377000118,1754196642660,-151.0,0.00028022,2]
[377000120,1754196642670,-151.79945944,0.00028022,2]
[377000122,1754196642680,-153.2764086,0.00028022,7]
[377000124,1754196642690,-152.54461792,0.00028022,7]
[377000126,1754196642699,-153.96329463,0.00028022,7]
[377000128,1754196642710,-151.0,0.00028022,7]
[377000130,1754196642720,-151.0,0.00028022,7]
[377000132,1754196642729,-151.0,0.00028022,7]
[377000134,1754196642739,-151.0,0.00028022,7]
[377000136,1754196642751,-54.09736754,0.00028022,7]
[377000137,1754196642771,-96.90263246,0.00028022,7]
[377000139,1754196642781,-151.0,0.00028022,7]
[377000140,1754196642790,-460.0,0.0002805,10]
[377000142,1754196642800,-500.57,0.0002805,10]
[377000144,1754196642810,-460.0,0.0002805,10]
[377000146,1754196642820,-460.0,0.00028051,10]
[377000148,1754196642830,-460.0,0.00028051,10]
[377000150,1754196642839,-420.61425295,0.00028051,10]
[377000153,1754196642851,-39.38574705,0.00028051,10]
[377000155,1754196642860,-460.0,0.00028051,10]
[377000157,1754196642869,-460.0,0.00028051,10]
[377000159,1754196642879,-460.0,0.00028051,10]
[377000161,1754196642889,-665.43,0.0002807,10]
[377000163,1754196642899,-460.0,0.00028071,10]
[377000165,1754196642909,-460.0,0.00028071,10]
[377000167,1754196642918,-460.0,0.00028071,10]
[377000169,1754196642927,-460.0,0.00028071,10]
[377000171,1754196642938,-460.0,0.00028071,10]
[377000173,1754196642948,-460.0,0.00028082,10]
[377000176,1754196642959,-460.0,0.00028082,10]
[377000178,1754196642968,-460.0,0.00028082,10]
[377000180,1754196642978,-460.0,0.00028082,10]
[377000182,1754196642987,-460.0,0.00028082,10]
[377000184,1754196642997,-2331.81706658,0.00028082,2]
[377000185,1754196643007,-152.0,0.00028091,7]
[377000188,1754196643017,-152.0,0.00028091,7]
[377000190,1754196643026,-85.72006043,0.00028091,7]
[377000192,1754196643038,-66.27993957,0.00028091,7]
[377000194,1754196643047,-152.0,0.00028091,7]
[377000196,1754196643058,-152.0,0.00028091,7]
[377000198,1754196643068,-185.09282795,0.00028091,7]
[377000200,1754196643077,-454.16777721,0.00028092,10]
[377000202,1754196643089,-5.83222279,0.00028092,10]
[377000204,1754196643099,-460.0,0.00028092,10]
[377000206,1754196643109,-460.0,0.00028092,10]
[377000208,1754196643118,-460.0,0.00028092,10]
[377000210,1754196643127,-225.8,0.00028092,10]
[377000212,1754196643137,-267.95,0.00028092,10]
[377000214,1754196643147,-460.0,0.00028092,10]
[377000216,1754196643156,-289.88,0.00028092,10]
[377000218,1754196643166,-460.0,0.00028092,10]
[377000220,1754196643175,-460.0,0.00028092,10]
[377000222,1754196643186,-460.0,0.00028092,10]
[377000224,1754196643196,-460.0,0.00028093,10]
[377000226,1754196643205,-460.0,0.00028093,10]
[377000228,1754196643215,-460.0,0.00028093,10]
[377000230,1754196643224,-460.0,0.00028093,10]
[377000232,1754196643234,-460.0,0.00028093,10]
[377000234,1754196643243,-460.0,0.00028093,10]
[377000236,1754196643252,-460.0,0.00028093,10]
[377000239,1754196643262,-460.0,0.00028093,10]
[377000240,1754196643271,-460.0,0.00028093,10]
[377000242,1754196643281,-460.0,0.00028093,10]
[377000244,1754196643290,-156.88,0.00028093,10]
[377000246,1754196643299,-340.12,0.00028093,10]
[377000248,1754196643308,-744.01,0.000281,7]
[377000250,1754196643318,-585.23232424,0.000281,2]
[377000253,1754196643328,-151.0,0.000281,7]
[377000254,1754196643337,-2331.81706658,0.00028105,2]
[377000256,1754196643347,-665.43,0.00028107,10]
[377000258,1754196643356,-460.0,0.00028108,10]
[377000260,1754196643366,-500.57,0.00028108,10]
[377000262,1754196643376,-665.43,0.00028108,10]
[377000264,1754196643385,-460.0,0.00028108,10]
[377000266,1754196643394,-500.0,0.00028109,5]
[377000268,1754196643403,-460.0,0.00028109,10]
[377000270,1754196643413,-460.0,0.00028109,10]
[377000272,1754196643422,-460.0,0.00028109,10]
[377000274,1754196643431,-460.0,0.00028109,10]
[377000276,1754196643441,-460.0,0.00028109,10]
[377000278,1754196643450,-460.0,0.00028109,10]
[377000280,1754196643460,-460.0,0.00028109,10]
[377000282,1754196643470,-460.0,0.00028109,10]
[377000284,1754196643479,-460.0,0.00028109,10]
[377000286,1754196643488,-460.0,0.00028109,10]
[377000288,1754196643497,-460.0,0.00028109,10]
[377000290,1754196643509,-460.0,0.00028109,10]
[377000292,1754196643519,-460.0,0.00028109,10]
[377000294,1754196643528,-267.76,0.00028109,10]
[377000296,1754196643538,-460.0,0.00028109,10]
[377000298,1754196643547,-460.0,0.00028109,10]
[377000300,1754196643557,-460.0,0.00028109,10]
[377000302,1754196643567,-500.0,0.00028109,10]
[377000304,1754196643576,-500.0,0.00028109,10]
[377000306,1754196643587,-500.0,0.00028109,10]
[377000308,1754196643596,-500.0,0.00028109,10]
[377000310,1754196643605,-455.02731498,0.00028109,10]
[377000312,1754196643614,-460.0,0.00028112,10]
[377000314,1754196643625,-500.57,0.00028112,10]
[377000316,1754196643634,-460.0,0.00028112,10]
[377000318,1754196643643,-460.0,0.00028113,10]
[377000320,1754196643654,-460.0,0.00028113,10]
[377000322,1754196643663,-460.0,0.00028113,10]
[377000324,1754196643671,-460.0,0.00028113,10]
[377000326,1754196643681,-460.0,0.00028113,10]
[377000328,1754196643691,-460.0,0.00028113,10]
[377000330,1754196643701,-460.0,0.00028113,10]
[377000332,1754196643711,-460.0,0.00028113,10]
[377000334,1754196643720,-336.58,0.00028113,10]
[377000336,1754196643729,-500.57,0.00028113,10]
[377000338,1754196643738,-500.57,0.00028113,10]
[377000340,1754196643747,-500.57,0.00028113,10]
[377000342,1754196643756,-500.57,0.00028113,10]
[377000344,1754196643766,-500.57,0.00028113,10]
[377000346,1754196643775,-500.57,0.00028113,10]
[377000348,1754196643785,-500.57,0.00028113,10]
[377000350,1754196643794,-500.57,0.00028113,10]
[377000352,1754196643803,-500.63228127,0.00028113,10]
[377000353,1754196643813,-665.43,0.00028113,10]
[377000355,1754196643822,-665.43,0.00028113,10]
[377000357,1754196643831,-665.43,0.00028113,10]
[377000360,1754196643841,-665.43,0.00028113,10]
[377000362,1754196643851,-665.43,0.00028113,10]
[377000364,1754196643860,-665.43,0.00028113,10]
[377000365,1754196643869,-665.43,0.00028113,10]
[377000367,1754196643879,-665.52,0.00028113,10]
[377000369,1754196643888,-564.64,0.00028113,10]
[377000371,1754196643897,-490.17382855,0.00028114,2]
[377000374,1754196643907,-1654.06556051,0.00028114,2]
[377000376,1754196643917,-403426.62358216,0.00028115,20]
[377000378,1754196643927,-170082.01362207,0.00028115,20]
[377000380,1754196643943,-1545.2049662,0.00028115,20]
[377000383,1754196643955,-340.365,0.00028115,20]
[377000385,1754196643966,-2927.83503057,0.00028115,20]
[377000387,1754196643978,-7361.8362943,0.00028115,20]
[377000389,1754196643989,-279.41166736,0.00028115,20]
[377000391,1754196644000,-185852.98883357,0.00028115,20]
[377000394,1754196644013,-27009.20116685,0.00028115,20]
[377000396,1754196644023,-7502.96741535,0.00028115,2]
[377000398,1754196644034,-20900.65228013,0.00028115,2]
[377000597,1754196645953,-254.77268796,0.00028041,2]
[377000732,1754196728798,159.0,0.00022,2]
[377000736,1754197381449,157.965746,0.00013699,2]
[377000737,1754197382201,157.965746,0.00022505,2]
[377000738,1754197552078,-325.78,0.0002373,2]
[377000739,1754197552100,-160.0,0.0002376,2]
[377000740,1754197552122,-1104.80099066,0.0002376,2]
[377000741,1754197552144,-20.89674781,0.00024383,2]
[377000743,1754197615107,-188.21012324,0.00024139,2]
[377000744,1754197642087,-1511.27324545,0.00024139,2]
[377000745,1754197642111,-147.3356936,0.00024383,2]
[377000746,1754197745330,215.27027894,0.00022039,2]
[377000768,1754197832150,-289.58,0.00023801,2]
[377000769,1754197832160,-331.76755859,0.00024383,2]
[377000770,1754197832169,-289.58,0.00024484,2]
[377000771,1754197832178,-300.0,0.00024999,2]
[377000772,1754197832187,-2050.45925379,0.00025,2]
[377000773,1754197832204,-567.76760405,0.00025,2]
[377000827,1754197838053,-798.52629353,0.00025,2]
[377000831,1754197838196,-453.67243545,0.00025,2]
[377000832,1754197838257,-6776.57441318,0.00025,2]
[377000833,1754197838267,-289.58,0.00025168,7]
[377000834,1754197838276,-172.2,0.00025375,7]
[377000835,1754197838287,-172.2,0.00025475,7]
[377000836,1754197838297,-172.21,0.00025575,7]
[377000837,1754197838310,-289.58,0.00025852,7]
[377000838,1754197838320,-200.0,0.00026249,15]
[377000839,1754197838330,-300.0,0.00026249,15]
[377000840,1754197838340,-306.76,0.00026301,2]
[377000841,1754197838351,-289.58,0.00026535,7]
[377000842,1754197838360,-197.012,0.00026575,13]
[377000843,1754197838370,-500.0,0.00026575,2]
[377000844,1754197838379,-216.32054205,0.00026648,2]
[377000845,1754197838388,-160.0,0.00026648,2]
[377000846,1754197838398,-215.12253551,0.00026648,2]
[377000847,1754197838407,-215.27027894,0.00027039,2]
[377000848,1754197838418,-420.0,0.00027082,2]
[377000849,1754197838430,-289.58,0.00027218,7]
[377000850,1754197838440,-154.7055118,0.00027271,2]
[377000851,1754197838449,-178.0434079,0.00027397,2]
[377000852,1754197838459,-559.95309708,0.00027397,5]
[377000853,1754197838468,-436.289,0.00027691,2]
[377000854,1754197838478,-289.58,0.00027902,7]
[377000855,1754197838489,-267.55061895,0.00027922,2]
[377000856,1754197838499,-674.0927779,0.00027922,2]
[377000857,1754197838508,-5246.58839982,0.00027935,2]
[377000858,1754197838518,-2554.77,0.00027944,2]
[377000859,1754197838527,-460.0,0.00027945,10]
[377000860,1754197838537,-460.0,0.00027945,10]
[377000861,1754197838547,-460.0,0.00027945,10]
[377000862,1754197838558,-500.0,0.00027945,2]
[377000863,1754197838567,-460.0,0.00027945,10]
[377000864,1754197838579,-460.0,0.00027945,10]
[377000865,1754197838589,-460.0,0.00027945,10]
[377000866,1754197838598,-460.0,0.00027945,10]
[377000867,1754197838608,-460.0,0.00027945,10]
[377000868,1754197838617,-460.0,0.00027945,10]
[377000869,1754197838626,-460.0,0.00027945,10]
[377000870,1754197838635,-286.77,0.00027945,10]
[377000871,1754197838646,-460.0,0.00027945,10]
[377000872,1754197838656,-460.0,0.00027945,10]
[377000873,1754197838666,-460.0,0.00027945,10]
[377000874,1754197838678,-460.0,0.00027945,10]
[377000875,1754197838688,-460.0,0.00027945,10]
[377000876,1754197838697,-502.79654769,0.00027945,10]
[377000877,1754197838709,-460.0,0.00027945,10]
[377000878,1754197838719,-460.0,0.00027945,10]
[377000879,1754197838729,-466.11001482,0.00027945,10]
[377000880,1754197838738,-347.36916299,0.00027945,10]
[377000881,1754197838747,-460.0,0.00027945,10]
[377000882,1754197838757,-460.0,0.00027945,10]
[377000883,1754197838766,-460.0,0.00027945,10]
[377000884,1754197838776,-492.25889591,0.00027945,10]
[377000885,1754197838786,-464.83555451,0.00027945,10]
[377000886,1754197838795,-460.0,0.00027945,10]
[377000887,1754197838805,-460.0,0.00027945,10]
[377000888,1754197838814,-460.0,0.00027945,10]
[377000889,1754197838824,-460.0,0.00027945,10]
[377000890,1754197838835,-460.0,0.00027945,10]
[377000891,1754197838844,-553.18,0.00027945,10]
[377000892,1754197838854,-460.0,0.00027945,10]
[377000893,1754197838864,-460.0,0.00027945,10]
[377000894,1754197838873,-460.0,0.00027945,10]
[377000895,1754197839025,-460.0,0.00027945,10]
[377000896,1754197839076,-573.63693519,0.00027945,10]
[377000897,1754197839086,-460.0,0.00027945,10]
[377000898,1754197839096,-460.0,0.00027945,10]
[377000899,1754197839105,-460.0,0.00027945,10]
[377000900,1754197839114,-464.79140713,0.00027945,10]
[377000901,1754197839124,-460.0,0.00027945,10]
[377000902,1754197839134,-582.85,0.00027945,10]
[377000903,1754197839143,-460.0,0.00027945,10]
[377000904,1754197839153,-460.0,0.00027945,10]
[377000905,1754197839162,-460.0,0.00027945,10]
[377000906,1754197839171,-460.0,0.00027945,10]
[377000907,1754197839180,-460.0,0.00027945,10]
[377000908,1754197839190,-460.0,0.00027945,10]
[377000909,1754197839199,-526.15,0.00027945,10]
[377000910,1754197839208,-460.0,0.00027945,10]
[377000911,1754197839218,-460.0,0.00027945,10]
[377000912,1754197839227,-460.0,0.00027945,10]
[377000913,1754197839236,-466.84009213,0.00027945,10]
[377000914,1754197839245,-500.74113642,0.00027945,10]
[377000915,1754197839257,-460.0,0.00027945,10]
[377000916,1754197839267,-402.13409213,0.00027945,10]
[377000917,1754197839278,-465.32062918,0.00027945,10]
[377000918,1754197839287,-462.47371454,0.00027945,10]
[377000919,1754197839298,-460.0,0.00027945,10]
[377000920,1754197839312,-460.0,0.00027945,10]
[377000921,1754197839323,-460.0,0.00027945,10]
[377000922,1754197839331,-460.0,0.00027945,10]
[377000923,1754197839341,-460.0,0.00027945,10]
[377000924,1754197839351,-470.89872402,0.00027945,10]
[377000925,1754197839360,-466.91306504,0.00027945,10]
[377000926,1754197839371,-463.29545648,0.00027945,10]
[377000927,1754197839382,-465.49738114,0.00027945,10]
[377000928,1754197839392,-460.0,0.00027945,10]
[377000929,1754197839402,-471.07426519,0.00027945,10]
[377000930,1754197839413,-460.0,0.00027945,10]
[377000931,1754197839422,-638.39,0.00027945,10]
[377000932,1754197839432,-638.39,0.00027945,10]
[377000933,1754197839441,-638.39,0.00027945,10]
[377000934,1754197839451,-638.39,0.00027945,10]
[377000935,1754197839461,-638.39,0.00027945,10]
[377000936,1754197839472,-638.39,0.00027945,10]
[377000937,1754197839481,-599.03895095,0.00027945,10]
[377000938,1754197839496,-39.35104905,0.00027945,10]
[377000939,1754197839506,-638.39,0.00027945,10]
[377000940,1754197839516,-461.67604199,0.00027945,10]
[377000941,1754197839525,-460.0,0.00027945,10]
[377000942,1754197839536,-460.0,0.00027945,10]
[377000943,1754197839545,-282.26714234,0.00027945,10]
[377000944,1754197839555,-460.0,0.00027945,10]
[377000945,1754197839565,-460.0,0.00027945,10]
[377000946,1754197839575,-460.0,0.00027945,10]
[377000947,1754197839585,-460.0,0.00027945,10]
[377000948,1754197839594,-460.0,0.00027945,10]
[377000949,1754197839604,-460.0,0.00027945,10]
[377000950,1754197839614,-460.0,0.00027945,10]
[377000951,1754197839624,-460.0,0.00027945,10]
[377000952,1754197839633,-460.0,0.00027945,10]
[377000953,1754197839642,-143.64175073,0.00027945,10]
[377000954,1754197839655,-316.35824927,0.00027945,10]
[377000955,1754197839664,-153.03918487,0.00027945,10]
[377000956,1754197839673,-460.0,0.00027945,10]
[377000957,1754197839682,-460.0,0.00027945,10]
[377000958,1754197839692,-460.0,0.00027945,10]
[377000959,1754197839701,-210.66932363,0.00027945,10]
[377000960,1754197839711,-462.14564478,0.00027945,10]
[377000961,1754197839721,-554.41,0.00027945,10]
[377000963,1754197839731,-554.41,0.00027945,10]
[377000965,1754197839740,-554.41,0.00027945,10]
[377000967,1754197839750,-1178.32,0.00027945,10]
[377000969,1754197839759,-1178.32,0.00027945,10]
[377000971,1754197839769,-460.0,0.00027945,10]
[377000973,1754197839778,-1178.32,0.00027945,10]
[377000975,1754197839790,-460.0,0.00027945,10]
[377000976,1754197839800,-460.0,0.00027945,10]
[377000977,1754197839810,-1178.32,0.00027945,10]
[377000978,1754197839819,-460.0,0.00027945,10]
[377000979,1754197839828,-1178.32,0.00027945,10]
[377000981,1754197839838,-460.0,0.00027945,10]
[377000983,1754197839848,-168.82348452,0.00027945,10]
[377000985,1754197839857,-1178.32,0.00027945,10]
[377000987,1754197839867,-565.68,0.00027945,10]
[377000989,1754197839877,-1178.32,0.00027945,10]
[377000991,1754197839886,-1178.32,0.00027945,10]
[377000993,1754197839896,-460.0,0.00027945,10]
[377000995,1754197839906,-460.0,0.00027945,10]
[377000997,1754197839917,-460.0,0.00027945,10]
[377000999,1754197839926,-460.0,0.00027945,10]
[377001001,1754197839936,-469.9,0.00027945,10]
[377001003,1754197839945,-464.34561628,0.00027945,10]
[377001004,1754197839954,-460.0,0.00027945,10]
[377001006,1754197839964,-460.0,0.00027945,10]
[377001008,1754197839974,-460.0,0.00027945,10]
[377001009,1754197839984,-460.0,0.00027945,10]
[377001011,1754197839994,-460.0,0.00027945,10]
[377001013,1754197840003,-460.0,0.00027945,10]
[377001015,1754197840013,-460.0,0.00027945,10]
[377001017,1754197840023,-460.0,0.00027945,10]
[377001019,1754197840032,-417.92724614,0.00027945,10]
[377001021,1754197840043,-460.0,0.00027945,10]
[377001023,1754197840052,-460.0,0.00027945,10]
[377001025,1754197840061,-460.0,0.00027945,10]
[377001026,1754197840071,-460.0,0.00027945,10]
[377001028,1754197840080,-460.0,0.00027945,10]
[377001030,1754197840089,-460.0,0.00027945,10]
[377001032,1754197840099,-510.14,0.00027945,10]
[377001034,1754197840109,-460.0,0.00027945,10]
[377001036,1754197840119,-460.0,0.00027945,10]
[377001038,1754197840128,-460.0,0.00027945,10]
[377001040,1754197840138,-460.0,0.00027945,10]
[377001042,1754197840148,-486.7,0.00027945,10]
[377001044,1754197840160,-500.0,0.00027945,10]
[377001046,1754197840170,-500.0,0.00027945,10]
[377001048,1754197840179,-500.0,0.00027945,10]
[377001050,1754197840190,-500.0,0.00027945,10]
[377001052,1754197840200,-500.0,0.00027945,10]
[377001054,1754197840209,-500.0,0.00027945,10]
[377001056,1754197840219,-500.0,0.00027945,10]
[377001057,1754197840228,-500.0,0.00027945,10]
[377001059,1754197840238,-460.0,0.00027945,10]
[377001061,1754197840248,-460.0,0.00027945,10]
[377001063,1754197840259,-460.0,0.00027945,10]
[377001065,1754197840268,-460.0,0.00027945,10]
[377001066,1754197840278,-460.0,0.00027945,10]
[377001067,1754197840288,-460.0,0.00027945,10]
[377001069,1754197840298,-460.0,0.00027945,10]
[377001070,1754197840310,-460.0,0.00027945,10]
[377001072,1754197840320,-460.0,0.00027945,10]
[377001074,1754197840329,-460.0,0.00027945,10]
[377001075,1754197840339,-460.0,0.00027945,10]
[377001076,1754197840349,-460.0,0.00027945,10]
[377001078,1754197840359,-460.0,0.00027945,10]
[377001079,1754197840370,-460.0,0.00027945,10]
[377001081,1754197840380,-460.0,0.00027945,10]
[377001083,1754197840389,-379.24548679,0.00027945,10]
[377001085,1754197840399,-471.0302583,0.00027945,10]
[377001086,1754197840409,-462.80508168,0.00027945,10]
[377001087,1754197840418,-460.0,0.00027945,10]
[377001088,1754197840427,-285.32839886,0.00027945,10]
[377001089,1754197840437,-460.0,0.00027945,10]
[377001090,1754197840447,-460.0,0.00027945,10]
[377001091,1754197840457,-460.0,0.00027945,10]
[377001092,1754197840466,-243.98,0.00027945,10]
[377001093,1754197840475,-471.99930157,0.00027945,10]
[377001094,1754197840485,-310.03574645,0.00027945,10]
[377001095,1754197840495,-460.0,0.00027945,10]
[377001096,1754197840504,-460.0,0.00027945,10]
[377001097,1754197840514,-460.0,0.00027945,10]
[377001098,1754197840524,-460.0,0.00027945,10]
[377001099,1754197840535,-460.0,0.00027945,10]
[377001100,1754197840544,-460.0,0.00027945,10]
[377001101,1754197840554,-460.0,0.00027945,10]
[377001102,1754197840563,-460.0,0.00027945,10]
[377001103,1754197840573,-468.65180991,0.00027945,10]
[377001104,1754197840583,-460.0,0.00027945,10]
[377001105,1754197840593,-460.0,0.00027945,10]
[377001106,1754197840603,-460.0,0.00027945,10]
[377001107,1754197840613,-460.0,0.00027945,10]
[377001108,1754197840624,-460.0,0.00027945,10]
[377001109,1754197840633,-460.0,0.00027945,10]
[377001110,1754197840643,-460.0,0.00027945,10]
[377001111,1754197840653,-512.3,0.00027945,10]
[377001112,1754197840664,-460.0,0.00027945,10]
[377001113,1754197840675,-460.0,0.00027945,10]
[377001114,1754197840684,-460.0,0.00027945,10]
[377001115,1754197840694,-460.0,0.00027945,10]
[377001116,1754197840703,-460.0,0.00027945,10]
[377001117,1754197840713,-460.0,0.00027945,10]
[377001118,1754197840723,-460.0,0.00027945,10]
[377001119,1754197840732,-321.42920794,0.00027945,10]
[377001120,1754197840741,-460.0,0.00027945,10]
[377001121,1754197840750,-460.0,0.00027945,10]
[377001122,1754197840759,-460.0,0.00027945,10]
[377001123,1754197840769,-460.0,0.00027945,10]
[377001124,1754197840778,-460.0,0.00027945,10]
[377001125,1754197840788,-460.0,0.00027945,10]
[377001126,1754197840798,-460.0,0.00027945,10]
[377001127,1754197840808,-460.0,0.00027945,10]
[377001128,1754197840818,-460.0,0.00027945,10]
[377001129,1754197840827,-460.0,0.00027945,10]
[377001130,1754197840836,-460.0,0.00027945,10]
[377001131,1754197840846,-460.0,0.00027945,10]
[377001132,1754197840856,-460.0,0.00027945,10]
[377001133,1754197840865,-581.18,0.00027945,10]
[377001134,1754197840875,-460.0,0.00027945,10]
[377001135,1754197840884,-460.0,0.00027945,10]
[377001136,1754197840894,-460.0,0.00027945,10]
[377001137,1754197840904,-460.0,0.00027945,10]
[377001138,1754197840913,-460.0,0.00027945,10]
[377001139,1754197840923,-460.0,0.00027945,10]
[377001140,1754197840932,-460.0,0.00027945,10]
[377001141,1754197840941,-588.82448394,0.00027945,10]
[377001142,1754197840950,-460.0,0.00027945,10]
[377001143,1754197840960,-460.0,0.00027945,10]
[377001144,1754197840969,-460.0,0.00027945,10]
[377001145,1754197840979,-419.02848745,0.00027945,10]
[377001146,1754197840988,-460.0,0.00027945,10]
[377001147,1754197840997,-460.0,0.00027945,10]
[377001148,1754197841006,-460.0,0.00027945,10]
[377001149,1754197841015,-460.0,0.00027945,10]
[377001150,1754197841025,-295.66191959,0.00027945,10]
[377001151,1754197841035,-460.0,0.00027945,10]
[377001152,1754197841045,-460.0,0.00027945,10]
[377001153,1754197841054,-518.56,0.00027945,10]
[377001154,1754197841063,-460.0,0.00027945,10]
[377001155,1754197841072,-500.0,0.00027945,10]
[377001156,1754197841082,-500.0,0.00027945,10]
[377001157,1754197841091,-500.0,0.00027945,10]
[377001158,1754197841100,-460.0,0.00027945,10]
[377001159,1754197841109,-500.0,0.00027945,10]
[377001160,1754197841119,-460.0,0.00027945,10]
[377001161,1754197841129,-460.0,0.00027945,10]
[377001162,1754197841139,-500.0,0.00027945,10]
[377001163,1754197841148,-460.0,0.00027945,10]
[377001164,1754197841157,-460.0,0.00027945,10]
[377001165,1754197841167,-500.0,0.00027945,10]
[377001166,1754197841177,-460.0,0.00027945,10]
[377001167,1754197841186,-460.0,0.00027945,10]
[377001168,1754197841197,-460.0,0.00027945,10]
[377001169,1754197841206,-455.02731498,0.00027945,10]
[377001170,1754197841216,-284.27764229,0.00027945,10]
[377001171,1754197841226,-460.0,0.00027945,10]
[377001172,1754197841236,-460.0,0.00027945,10]
[377001173,1754197841245,-460.0,0.00027945,10]
[377001174,1754197841254,-460.0,0.00027945,10]
[377001175,1754197841264,-460.0,0.00027945,10]
[377001176,1754197841273,-460.0,0.00027945,10]
[377001177,1754197841283,-460.0,0.00027945,10]
[377001178,1754197841293,-335.31,0.00027945,10]
[377001179,1754197841305,-622.23,0.00027945,10]
[377001180,1754197841317,-622.23,0.00027945,10]
[377001181,1754197841326,-622.23,0.00027945,10]
[377001182,1754197841337,-460.0,0.00027945,10]
[377001183,1754197841346,-460.0,0.00027945,10]
[377001184,1754197841356,-460.0,0.00027945,10]
[377001185,1754197841365,-460.0,0.00027945,10]
[377001186,1754197841374,-460.0,0.00027945,10]
[377001187,1754197841383,-178.23,0.00027945,10]
[377001188,1754197841394,-460.0,0.00027945,10]
[377001189,1754197841403,-460.0,0.00027945,10]
[377001190,1754197841413,-460.0,0.00027945,10]
[377001191,1754197841422,-460.0,0.00027945,10]
[377001192,1754197841431,-379.65803278,0.00027945,10]
[377001193,1754197841440,-460.0,0.00027945,10]
[377001194,1754197841450,-460.0,0.00027945,10]
[377001195,1754197841460,-460.0,0.00027945,10]
[377001196,1754197841469,-460.0,0.00027945,10]
[377001197,1754197841479,-460.0,0.00027945,10]
[377001198,1754197841489,-460.0,0.00027945,10]
[377001199,1754197841498,-460.0,0.00027945,10]